[Event "MČR juniorů a juniorek v rapid šachu 2023"]
[Site "Czech Republic"]
[Date "2023.09.23"]
[Round "5.9"]
[White "Nagy, Ladislav"]
[Black "Stary, Simon"]
[Result "1-0"]
[TimeControl "20 min + 5 sec per move"]
[WhiteFideId "374300"]
[BlackFideId "23734353"]
[WhiteElo "2089"]
[BlackElo "1518"]

1. e4 {[%clk 00:20:08]} {[%emt 00:00:02]} c5 {[%clk 00:20:10]} {[%emt
00:00:01]} 2. Nf3 {[%clk 00:20:09]} {[%emt 00:00:03]} d6 {[%clk 00:20:14]} 3.
d4 {[%clk 00:20:10]} {[%emt 00:00:05]} cxd4 {[%clk 00:20:18]} {[%emt 00:00:01]}
4. Qxd4 {[%clk 00:20:13]} {[%emt 00:00:02]} Nc6 {[%clk 00:20:20]} {[%emt
00:00:03]} 5. Bb5 {[%clk 00:20:14]} {[%emt 00:00:03]} Bd7 {[%clk 00:20:19]}
{[%emt 00:00:07]} 6. Bxc6 {[%clk 00:20:18]} {[%emt 00:00:02]} bxc6 {[%clk
00:20:21]} {[%emt 00:00:02]} 7. c4 {[%clk 00:20:09]} {[%emt 00:00:13]} Nf6
{[%clk 00:20:25]} {[%emt 00:00:02]} 8. Nc3 {[%clk 00:20:09]} {[%emt 00:00:06]}
c5 {[%clk 00:19:40]} {[%emt 00:00:49]} 9. Qd3 {[%clk 00:19:51]} {[%emt
00:00:22]} Bc6 {[%clk 00:19:42]} {[%emt 00:00:03]} 10. O-O {[%clk 00:19:02]}
{[%emt 00:00:54]} g6 {[%clk 00:19:45]} {[%emt 00:00:02]} 11. Bg5 {[%clk
00:16:07]} {[%emt 00:03:00]} Bg7 {[%clk 00:19:49]} {[%emt 00:00:02]} 12. Rad1
{[%clk 00:15:23]} {[%emt 00:00:48]} O-O {[%clk 00:19:51]} {[%emt 00:00:04]} 13.
Nd5 {[%clk 00:13:59]} {[%emt 00:01:29]} Bxd5 {[%clk 00:19:48]} {[%emt
00:00:09]} 14. exd5 {[%clk 00:13:35]} {[%emt 00:00:28]} Nd7 {[%clk 00:19:33]}
{[%emt 00:00:20]} 15. b3 {[%clk 00:12:47]} {[%emt 00:00:53]} Ne5 {[%clk
00:19:37]} {[%emt 00:00:01]} 16. Nxe5 {[%clk 00:12:50]} {[%emt 00:00:02]} Bxe5
{[%clk 00:19:40]} {[%emt 00:00:02]} 17. Bd2 {[%clk 00:11:42]} {[%emt 00:01:12]}
a5 {[%clk 00:19:09]} {[%emt 00:00:37]} 18. a4 {[%clk 00:09:44]} {[%emt
00:02:02]} Rb8 {[%clk 00:18:35]} {[%emt 00:00:39]} 19. f4 {[%clk 00:09:16]}
{[%emt 00:00:33]} Bf6 {[%clk 00:18:32]} {[%emt 00:00:08]} 20. f5 {[%clk
00:08:59]} {[%emt 00:00:22]} Qb6 {[%clk 00:18:13]} {[%emt 00:00:24]} 21. Rf3
{[%clk 00:08:57]} {[%emt 00:00:07]} Kg7 {[%clk 00:17:50]} {[%emt 00:00:29]} 22.
Rdf1 {[%clk 00:08:19]} {[%emt 00:00:43]} Be5 {[%clk 00:17:26]} {[%emt
00:00:30]} 23. Rh3 {[%clk 00:07:17]} {[%emt 00:01:06]} Rfe8 {[%clk 00:16:49]}
{[%emt 00:00:43]} 24. Kh1 {[%clk 00:06:55]} {[%emt 00:00:26]} Rh8 {[%clk
00:15:58]} {[%emt 00:00:56]} 25. Bh6+ {[%clk 00:06:34]} {[%emt 00:00:26]} Kg8
{[%clk 00:16:02]} 26. Qf3 {[%clk 00:06:30]} {[%emt 00:00:10]} Bf6 {[%clk
00:15:35]} {[%emt 00:00:32]} 27. g4 {[%clk 00:03:23]} {[%emt 00:03:13]} Rf8
{[%clk 00:14:39]} {[%emt 00:01:01]} 28. Bxf8 {[%clk 00:03:13]} {[%emt
00:00:15]} Kxf8 {[%clk 00:14:41]} {[%emt 00:00:03]} 29. fxg6 {[%clk 00:03:12]}
{[%emt 00:00:06]} 1-0

[Event "MČR juniorů a juniorek v rapid šachu 2023"]
[Site "Czech Republic"]
[Date "2023.09.23"]
[Round "5.10"]
[White "Stejskal, Michal"]
[Black "Husa, Daniel"]
[Result "1-0"]
[TimeControl "20 min + 5 sec per move"]
[WhiteFideId "398195"]
[BlackFideId "393487"]
[WhiteElo "1959"]
[BlackElo "1760"]

1. e4 {[%clk 00:20:07]} {[%emt 00:00:02]} c5 {[%clk 00:20:07]} {[%emt
00:00:04]} 2. Nf3 {[%clk 00:20:08]} {[%emt 00:00:03]} e6 {[%clk 00:20:10]}
{[%emt 00:00:02]} 3. Nc3 {[%clk 00:20:11]} {[%emt 00:00:03]} Nc6 {[%clk
00:20:11]} {[%emt 00:00:05]} 4. d4 {[%clk 00:20:09]} {[%emt 00:00:06]} cxd4
{[%clk 00:20:11]} {[%emt 00:00:06]} 5. Nxd4 {[%clk 00:20:12]} {[%emt 00:00:01]}
Nf6 {[%clk 00:20:14]} 6. g3 {[%clk 00:19:58]} {[%emt 00:00:19]} d5 {[%clk
00:19:27]} {[%emt 00:00:52]} 7. Nxc6 {[%clk 00:19:29]} {[%emt 00:00:35]} bxc6
{[%clk 00:19:27]} {[%emt 00:00:04]} 8. Bg2 {[%clk 00:19:32]} {[%emt 00:00:03]}
Ba6 {[%clk 00:17:22]} {[%emt 00:02:10]} 9. exd5 {[%clk 00:18:58]} {[%emt
00:00:38]} exd5 {[%clk 00:16:42]} {[%emt 00:00:46]} 10. Be3 {[%clk 00:18:38]}
{[%emt 00:00:25]} Bd6 {[%clk 00:14:28]} {[%emt 00:02:19]} 11. Ne2 {[%clk
00:18:26]} {[%emt 00:00:16]} Qe7 {[%clk 00:12:38]} {[%emt 00:01:55]} 12. c3
{[%clk 00:17:40]} {[%emt 00:00:52]} O-O {[%clk 00:12:17]} {[%emt 00:00:26]} 13.
O-O {[%clk 00:17:38]} {[%emt 00:00:07]} Ng4 {[%clk 00:11:39]} {[%emt 00:00:44]}
14. Re1 {[%clk 00:15:37]} {[%emt 00:02:04]} Nxe3 {[%clk 00:11:16]} {[%emt
00:00:28]} 15. fxe3 {[%clk 00:15:41]} {[%emt 00:00:02]} Qxe3+ {[%clk 00:11:03]}
{[%emt 00:00:18]} 16. Kh1 {[%clk 00:15:45]} Qh6 {[%clk 00:10:16]} {[%emt
00:00:52]} 17. Kg1 {[%clk 00:15:17]} {[%emt 00:00:32]} Qe3+ {[%clk 00:09:27]}
{[%emt 00:00:54]} 18. Kh1 {[%clk 00:15:21]} {[%emt 00:00:02]} Qh6 {[%clk
00:07:47]} {[%emt 00:01:45]} 19. Kg1 {[%clk 00:15:23]} {[%emt 00:00:03]} Bc5+
{[%clk 00:07:26]} {[%emt 00:00:25]} 20. Nd4 {[%clk 00:15:26]} {[%emt 00:00:02]}
Rfe8 {[%clk 00:07:01]} {[%emt 00:00:30]} 21. Kh1 {[%clk 00:14:45]} {[%emt
00:00:46]} Rac8 {[%clk 00:04:31]} {[%emt 00:02:36]} 22. Qa4 {[%clk 00:13:06]}
{[%emt 00:01:43]} Bb7 {[%clk 00:04:11]} {[%emt 00:00:26]} 23. Nf5 {[%clk
00:12:34]} {[%emt 00:00:37]} Qf6 {[%clk 00:03:38]} {[%emt 00:00:38]} 24. Rf1
{[%clk 00:12:17]} {[%emt 00:00:21]} Qe5 {[%clk 00:02:43]} {[%emt 00:01:00]} 25.
Qg4 {[%clk 00:12:03]} {[%emt 00:00:19]} g6 {[%clk 00:02:30]} {[%emt 00:00:19]}
26. Nh6+ {[%clk 00:11:59]} {[%emt 00:00:08]} Kg7 {[%clk 00:02:21]} {[%emt
00:00:15]} 27. Nxf7 {[%clk 00:10:13]} {[%emt 00:01:51]} Qe6 {[%clk 00:01:58]}
{[%emt 00:00:28]} 28. Qg5 {[%clk 00:09:50]} {[%emt 00:00:28]} Be3 {[%clk
00:01:20]} {[%emt 00:00:43]} 29. Qh4 {[%clk 00:09:48]} {[%emt 00:00:06]} Rc7
{[%clk 00:00:59]} {[%emt 00:00:26]} 30. Ng5 {[%clk 00:09:11]} {[%emt 00:00:42]}
Bxg5 {[%clk 00:00:56]} {[%emt 00:00:08]} 31. Qxg5 {[%clk 00:09:15]} Rf7 {[%clk
00:00:35]} {[%emt 00:00:27]} 32. Rxf7+ {[%clk 00:09:16]} {[%emt 00:00:05]} Qxf7
{[%clk 00:00:35]} {[%emt 00:00:04]} 33. Rf1 {[%clk 00:09:19]} {[%emt 00:00:01]}
Qe7 {[%clk 00:00:35]} {[%emt 00:00:06]} 34. Qf4 {[%clk 00:08:43]} {[%emt
00:00:41]} Rf8 {[%clk 00:00:33]} {[%emt 00:00:07]} 35. Qd4+ {[%clk 00:08:47]}
Kg8 {[%clk 00:00:21]} {[%emt 00:00:16]} 36. Rxf8+ {[%clk 00:08:51]} {[%emt
00:00:02]} Qxf8 {[%clk 00:00:16]} {[%emt 00:00:10]} 37. Qxa7 {[%clk 00:08:51]}
{[%emt 00:00:05]} Qf5 {[%clk 00:00:13]} {[%emt 00:00:08]} 38. Qb8+ {[%clk
00:08:36]} {[%emt 00:00:20]} Bc8 {[%clk 00:00:17]} {[%emt 00:00:02]} 39. h3
{[%clk 00:08:24]} {[%emt 00:00:16]} Kg7 {[%clk 00:00:10]} {[%emt 00:00:12]} 40.
Qc7+ {[%clk 00:08:25]} {[%emt 00:00:03]} Bd7 {[%clk 00:00:15]} {[%emt
00:00:01]} 41. Kh2 {[%clk 00:08:26]} {[%emt 00:00:04]} h5 {[%clk 00:00:18]}
{[%emt 00:00:02]} 42. a4 {[%clk 00:08:11]} {[%emt 00:00:20]} h4 {[%clk
00:00:12]} {[%emt 00:00:11]} 43. g4 {[%clk 00:08:06]} {[%emt 00:00:10]} Qe6
{[%clk 00:00:11]} {[%emt 00:00:06]} 44. a5 {[%clk 00:08:05]} {[%emt 00:00:07]}
Kh6 {[%clk 00:00:07]} {[%emt 00:00:08]} 45. a6 {[%clk 00:07:54]} {[%emt
00:00:16]} Qe1 {[%clk 00:00:07]} {[%emt 00:00:05]} 46. a7 {[%clk 00:07:43]}
{[%emt 00:00:16]} Bxg4 {[%clk 00:00:07]} {[%emt 00:00:05]} 47. hxg4 {[%clk
00:07:14]} {[%emt 00:00:33]} h3 {[%clk 00:00:09]} {[%emt 00:00:03]} 48. Kxh3
{[%clk 00:07:18]} {[%emt 00:00:01]} Qe3+ {[%clk 00:00:10]} {[%emt 00:00:03]} 49.
Qg3 {[%clk 00:07:21]} {[%emt 00:00:02]} Qxa7 {[%clk 00:00:13]} {[%emt
00:00:03]} 50. Qf4+ {[%clk 00:07:18]} {[%emt 00:00:07]} Kh7 {[%clk 00:00:12]}
{[%emt 00:00:07]} 51. c4 {[%clk 00:07:06]} {[%emt 00:00:17]} dxc4 {[%clk
00:00:13]} {[%emt 00:00:04]} 52. Be4 {[%clk 00:07:03]} {[%emt 00:00:07]} Qd7
{[%clk 00:00:07]} {[%emt 00:00:11]} 53. Qg5 {[%clk 00:06:48]} {[%emt 00:00:20]}
Qe6 {[%clk 00:00:11]} {[%emt 00:00:02]} 54. Qe3 {[%clk 00:06:37]} {[%emt
00:00:16]} Kg7 {[%clk 00:00:08]} {[%emt 00:00:08]} 55. Qd4+ {[%clk 00:06:36]}
{[%emt 00:00:06]} Kh6 {[%clk 00:00:08]} {[%emt 00:00:05]} 56. Kg3 {[%clk
00:06:06]} {[%emt 00:00:35]} Kg5 {[%clk 00:00:07]} {[%emt 00:00:07]} 57. Qd8+
{[%clk 00:05:58]} {[%emt 00:00:12]} Kh6 {[%clk 00:00:08]} {[%emt 00:00:04]} 58.
Qh8+ {[%clk 00:06:01]} {[%emt 00:00:01]} Kg5 {[%clk 00:00:11]} {[%emt
00:00:02]} 59. Qh4# {[%emt 00:00:02]} 1-0

[Event "MČR juniorů a juniorek v rapid šachu 2023"]
[Site "Czech Republic"]
[Date "2023.09.23"]
[Round "5.11"]
[White "Svacina, Tobias"]
[Black "Merinsky, Vaclav"]
[Result "1-0"]
[TimeControl "20 min + 5 sec per move"]
[WhiteFideId "385859"]
[BlackFideId "390062"]
[WhiteElo "1782"]
[BlackElo "1869"]

1. e4 {[%clk 00:20:08]} {[%emt 00:00:02]} e5 {[%clk 00:20:09]} {[%emt
00:00:02]} 2. Nf3 {[%clk 00:20:12]} Nc6 {[%clk 00:20:13]} 3. Bc4 {[%clk
00:20:16]} {[%emt 00:00:01]} Bc5 {[%clk 00:20:14]} {[%emt 00:00:03]} 4. b4
{[%clk 00:20:19]} {[%emt 00:00:03]} Bb6 {[%clk 00:20:18]} {[%emt 00:00:02]} 5.
a4 {[%clk 00:20:22]} {[%emt 00:00:02]} a6 {[%clk 00:20:10]} {[%emt 00:00:12]} 6.
Bb2 {[%clk 00:19:59]} {[%emt 00:00:28]} d6 {[%clk 00:19:56]} {[%emt 00:00:19]}
7. O-O {[%clk 00:19:38]} {[%emt 00:00:27]} Nf6 {[%clk 00:19:46]} {[%emt
00:00:14]} 8. d4 {[%clk 00:18:49]} {[%emt 00:00:54]} Bg4 {[%clk 00:19:16]}
{[%emt 00:00:35]} 9. d5 {[%clk 00:17:22]} {[%emt 00:01:33]} Nd4 {[%clk
00:18:45]} {[%emt 00:00:36]} 10. Bxd4 {[%clk 00:17:24]} {[%emt 00:00:03]} Bxd4
{[%clk 00:18:48]} {[%emt 00:00:02]} 11. c3 {[%clk 00:17:27]} {[%emt 00:00:02]}
Bb6 {[%clk 00:18:29]} {[%emt 00:00:24]} 12. Nbd2 {[%clk 00:17:21]} {[%emt
00:00:11]} O-O {[%clk 00:18:16]} {[%emt 00:00:18]} 13. h3 {[%clk 00:17:15]}
{[%emt 00:00:11]} Bh5 {[%clk 00:18:13]} {[%emt 00:00:06]} 14. a5 {[%clk
00:17:05]} {[%emt 00:00:17]} Ba7 {[%clk 00:18:15]} {[%emt 00:00:02]} 15. Be2
{[%clk 00:16:21]} {[%emt 00:00:49]} Bg6 {[%clk 00:18:11]} {[%emt 00:00:09]} 16.
Bd3 {[%clk 00:16:22]} {[%emt 00:00:05]} Nxd5 {[%clk 00:17:52]} {[%emt
00:00:24]} 17. Qc2 {[%clk 00:16:00]} {[%emt 00:00:27]} Nf6 {[%clk 00:17:45]}
{[%emt 00:00:11]} 18. Nc4 {[%clk 00:15:50]} {[%emt 00:00:16]} Nh5 {[%clk
00:16:58]} {[%emt 00:00:50]} 19. g3 {[%emt 00:00:12]} Nxg3 {[%clk 00:16:58]} 20.
Rfe1 {[%clk 00:15:53]} {[%emt 00:00:02]} Nh5 {[%clk 00:16:42]} {[%emt
00:00:20]} 21. Ncd2 {[%clk 00:15:47]} {[%emt 00:00:12]} Nf4 {[%clk 00:16:33]}
{[%emt 00:00:13]} 22. Bf1 {[%clk 00:15:50]} {[%emt 00:00:03]} Qd7 {[%clk
00:15:27]} {[%emt 00:01:08]} 23. c4 {[%clk 00:14:41]} {[%emt 00:01:16]} Nxh3+
{[%clk 00:14:06]} {[%emt 00:01:25]} 24. Bxh3 Qxh3 {[%clk 00:14:07]} 25. Nh2
{[%clk 00:14:48]} {[%emt 00:00:02]} Qg3+ {[%clk 00:13:41]} {[%emt 00:00:31]} 26.
Kh1 {[%clk 00:14:50]} {[%emt 00:00:04]} Qxf2 {[%clk 00:13:18]} {[%emt
00:00:26]} 27. Rf1 {[%clk 00:14:52]} {[%emt 00:00:05]} Qe3 {[%clk 00:12:52]}
{[%emt 00:00:27]} 28. Rf3 {[%clk 00:14:48]} {[%emt 00:00:12]} Qg5 {[%clk
00:12:03]} {[%emt 00:00:50]} 29. c5 {[%clk 00:14:49]} {[%emt 00:00:10]} Qe7
{[%clk 00:11:37]} {[%emt 00:00:27]} 30. Rc1 {[%clk 00:14:34]} {[%emt 00:00:22]}
b6 {[%clk 00:10:55]} {[%emt 00:00:48]} 31. axb6 {[%clk 00:14:25]} {[%emt
00:00:14]} cxb6 {[%clk 00:10:55]} {[%emt 00:00:05]} 32. c6 {[%clk 00:14:29]}
{[%emt 00:00:01]} Qc7 {[%clk 00:10:36]} {[%emt 00:00:23]} 33. Qc4 {[%clk
00:13:39]} {[%emt 00:00:56]} b5 {[%clk 00:10:20]} {[%emt 00:00:22]} 34. Qd5
{[%clk 00:13:41]} {[%emt 00:00:02]} a5 {[%clk 00:06:52]} {[%emt 00:03:33]} 35.
bxa5 {[%clk 00:12:30]} {[%emt 00:01:16]} Bc5 {[%clk 00:06:38]} {[%emt
00:00:18]} 36. Nb3 {[%clk 00:12:31]} {[%emt 00:00:05]} Rfc8 {[%clk 00:06:30]}
{[%emt 00:00:11]} 37. Nxc5 {[%clk 00:11:02]} {[%emt 00:01:36]} dxc5 {[%clk
00:06:26]} {[%emt 00:00:09]} 38. Rxc5 {[%clk 00:10:45]} {[%emt 00:00:22]} Rxa5
{[%clk 00:06:20]} {[%emt 00:00:11]} 39. Nf1 {[%clk 00:07:30]} {[%emt 00:03:19]}
Ra6 {[%clk 00:05:15]} {[%emt 00:01:08]} 40. Rfc3 {[%clk 00:06:34]} {[%emt
00:01:03]} b4 {[%clk 00:03:31]} {[%emt 00:01:50]} 41. R3c4 {[%clk 00:06:38]}
{[%emt 00:00:02]} b3 {[%clk 00:03:24]} {[%emt 00:00:09]} 42. Rb4 {[%clk
00:06:41]} {[%emt 00:00:04]} h6 {[%clk 00:03:19]} {[%emt 00:00:10]} 43. Rb7
{[%clk 00:06:27]} {[%emt 00:00:19]} Qd8 {[%clk 00:02:34]} {[%emt 00:00:43]} 44.
Qxd8+ {[%clk 00:03:37]} {[%emt 00:03:02]} Rxd8 {[%clk 00:02:37]} {[%emt
00:00:02]} 45. c7 {[%clk 00:03:39]} {[%emt 00:00:03]} Rc8 {[%clk 00:02:35]}
{[%emt 00:00:04]} 46. Nd2 {[%clk 00:03:28]} {[%emt 00:00:18]} b2 {[%clk
00:01:56]} {[%emt 00:00:44]} 47. Rxb2 {[%clk 00:02:56]} {[%emt 00:00:37]} Ra7
{[%clk 00:01:25]} {[%emt 00:00:35]} 48. Rb8 {[%clk 00:02:53]} {[%emt 00:00:09]}
Ra8 {[%clk 00:01:16]} {[%emt 00:00:14]} 49. Rxa8 {[%clk 00:02:56]} {[%emt
00:00:02]} Rxa8 {[%clk 00:01:18]} {[%emt 00:00:02]} 50. c8=Q+ {[%emt 00:00:03]}
1-0

[Event "MČR juniorů a juniorek v rapid šachu 2023"]
[Site "Czech Republic"]
[Date "2023.09.23"]
[Round "5.12"]
[White "Simunek, Jakub Simon"]
[Black "Zadrapova, Amalie"]
[Result "1-0"]
[TimeControl "20 min + 5 sec per move"]
[WhiteFideId "23709464"]
[BlackFideId "23710276"]
[WhiteElo "1843"]
[BlackElo "1590"]

1. e4 {[%clk 00:20:07]} {[%emt 00:00:03]} c5 {[%clk 00:20:09]} 2. Nf3 {[%clk
00:20:10]} {[%emt 00:00:03]} d6 {[%clk 00:20:12]} {[%emt 00:00:02]} 3. Bb5+
{[%clk 00:20:14]} {[%emt 00:00:02]} Nd7 {[%clk 00:20:10]} {[%emt 00:00:06]} 4.
c3 {[%clk 00:20:18]} {[%emt 00:00:02]} a6 {[%clk 00:20:05]} {[%emt 00:00:10]} 5.
Ba4 {[%clk 00:20:21]} {[%emt 00:00:01]} b5 {[%clk 00:20:02]} {[%emt 00:00:08]}
6. Bc2 {[%clk 00:20:25]} {[%emt 00:00:01]} Ngf6 {[%clk 00:19:57]} {[%emt
00:00:11]} 7. O-O {[%clk 00:20:24]} {[%emt 00:00:04]} e6 {[%clk 00:19:48]}
{[%emt 00:00:15]} 8. d4 {[%clk 00:20:25]} {[%emt 00:00:04]} Be7 {[%clk
00:19:24]} {[%emt 00:00:29]} 9. Qe2 {[%clk 00:20:24]} {[%emt 00:00:06]} O-O
{[%clk 00:19:17]} {[%emt 00:00:12]} 10. Rd1 {[%clk 00:20:27]} {[%emt 00:00:03]}
Qc7 {[%clk 00:18:58]} {[%emt 00:00:23]} 11. Bf4 {[%clk 00:19:53]} {[%emt
00:00:38]} e5 {[%clk 00:18:01]} {[%emt 00:01:02]} 12. dxe5 {[%clk 00:19:46]}
{[%emt 00:00:13]} dxe5 {[%clk 00:17:34]} {[%emt 00:00:32]} 13. Bg5 {[%clk
00:19:12]} {[%emt 00:00:39]} c4 {[%clk 00:16:25]} {[%emt 00:01:15]} 14. Nbd2
{[%clk 00:18:14]} {[%emt 00:01:02]} Bb7 {[%clk 00:15:19]} {[%emt 00:01:11]} 15.
Nf1 {[%clk 00:18:00]} {[%emt 00:00:19]} h6 {[%clk 00:14:44]} {[%emt 00:00:40]}
16. Bh4 {[%clk 00:16:09]} {[%emt 00:01:57]} Nc5 {[%clk 00:13:50]} {[%emt
00:00:57]} 17. Bg3 {[%clk 00:12:32]} {[%emt 00:03:42]} Bd6 {[%clk 00:12:50]}
{[%emt 00:01:06]} 18. N3d2 {[%clk 00:09:51]} {[%emt 00:02:46]} Rad8 {[%clk
00:11:23]} {[%emt 00:01:32]} 19. f3 {[%clk 00:09:48]} {[%emt 00:00:08]} Nh5
{[%clk 00:10:46]} {[%emt 00:00:42]} 20. Ne3 {[%clk 00:09:47]} {[%emt 00:00:06]}
Nf4 {[%clk 00:09:08]} {[%emt 00:01:42]} 21. Bxf4 {[%clk 00:08:39]} {[%emt
00:01:14]} exf4 {[%clk 00:09:11]} {[%emt 00:00:03]} 22. Nf5 {[%clk 00:08:42]}
{[%emt 00:00:02]} Be5 {[%clk 00:08:16]} {[%emt 00:00:59]} 23. Nf1 {[%clk
00:08:14]} {[%emt 00:00:32]} Kh7 {[%clk 00:05:32]} {[%emt 00:02:50]} 24. Kh1
{[%clk 00:06:51]} {[%emt 00:01:28]} g6 {[%clk 00:05:17]} {[%emt 00:00:20]} 25.
Nd4 {[%clk 00:06:46]} {[%emt 00:00:09]} Rd6 {[%clk 00:02:40]} {[%emt 00:02:43]}
26. Rd2 {[%clk 00:06:35]} {[%emt 00:00:16]} Rfd8 {[%clk 00:02:43]} {[%emt
00:00:02]} 27. Rad1 {[%clk 00:06:37]} {[%emt 00:00:03]} Qd7 {[%clk 00:02:21]}
{[%emt 00:00:27]} 28. b3 {[%clk 00:04:33]} {[%emt 00:02:10]} cxb3 {[%clk
00:01:40]} {[%emt 00:00:45]} 29. axb3 {[%clk 00:04:36]} {[%emt 00:00:01]} Qc7
{[%clk 00:00:37]} {[%emt 00:01:09]} 30. b4 {[%clk 00:03:23]} {[%emt 00:01:18]}
Nd7 {[%clk 00:00:37]} {[%emt 00:00:05]} 31. Rd3 {[%clk 00:03:19]} {[%emt
00:00:10]} Nb6 {[%clk 00:00:33]} {[%emt 00:00:08]} 32. Bb3 {[%clk 00:02:48]}
{[%emt 00:00:36]} Nc4 {[%clk 00:00:34]} {[%emt 00:00:04]} 33. g3 {[%clk
00:02:06]} {[%emt 00:00:47]} fxg3 {[%clk 00:00:25]} {[%emt 00:00:14]} 34. hxg3
{[%clk 00:02:09]} {[%emt 00:00:02]} R6d7 {[%clk 00:00:25]} {[%emt 00:00:04]} 35.
Kg2 {[%clk 00:02:07]} {[%emt 00:00:07]} Qb6 {[%clk 00:00:16]} {[%emt 00:00:15]}
36. Qf2 {[%clk 00:01:28]} {[%emt 00:00:44]} Rd6 {[%clk 00:00:14]} {[%emt
00:00:07]} 37. Nh2 {[%clk 00:01:14]} {[%emt 00:00:19]} Bc8 {[%emt 00:00:03]} 38.
Kg1 {[%clk 00:00:18]} {[%emt 00:01:00]} f5 {[%clk 00:00:17]} {[%emt 00:00:05]}
39. f4 {[%clk 00:00:18]} {[%emt 00:00:05]} Bxd4 {[%clk 00:00:19]} {[%emt
00:00:03]} 40. Rxd4 {[%clk 00:00:20]} {[%emt 00:00:04]} Rxd4 {[%clk 00:00:22]}
41. Rxd4 {[%clk 00:00:16]} {[%emt 00:00:10]} Rxd4 {[%clk 00:00:26]} {[%emt
00:00:01]} 42. cxd4 {[%clk 00:00:11]} {[%emt 00:00:09]} fxe4 {[%clk 00:00:29]}
{[%emt 00:00:02]} 43. Nf1 {[%clk 00:00:11]} {[%emt 00:00:05]} Bf5 {[%clk
00:00:30]} {[%emt 00:00:03]} 44. Bxc4 {[%clk 00:00:09]} {[%emt 00:00:07]} bxc4
{[%clk 00:00:34]} {[%emt 00:00:02]} 45. Qd2 {[%clk 00:00:14]} Bg4 {[%clk
00:00:25]} {[%emt 00:00:15]} 46. Ne3 {[%clk 00:00:13]} {[%emt 00:00:06]} Bf3
{[%clk 00:00:24]} {[%emt 00:00:06]} 47. Kf2 {[%clk 00:00:10]} {[%emt 00:00:07]}
Qe6 {[%clk 00:00:24]} {[%emt 00:00:04]} 48. d5 {[%clk 00:00:09]} {[%emt
00:00:07]} Qh3 {[%clk 00:00:22]} {[%emt 00:00:07]} 49. Nxc4 {[%clk 00:00:11]}
{[%emt 00:00:03]} Qh2+ {[%clk 00:00:23]} {[%emt 00:00:03]} 50. Ke3 {[%clk
00:00:14]} {[%emt 00:00:02]} Qg1+ {[%clk 00:00:25]} {[%emt 00:00:03]} 51. Qf2
{[%clk 00:00:15]} {[%emt 00:00:05]} Qc1+ {[%clk 00:00:27]} {[%emt 00:00:02]} 52.
Kd4 {[%clk 00:00:08]} {[%emt 00:00:13]} Qa1+ {[%clk 00:00:22]} {[%emt
00:00:09]} 53. Kc5 {[%clk 00:00:10]} {[%emt 00:00:04]} Qf6 {[%clk 00:00:15]}
{[%emt 00:00:12]} 54. Qd4 {[%clk 00:00:10]} {[%emt 00:00:05]} Qe7+ {[%clk
00:00:17]} {[%emt 00:00:03]} 55. d6 {[%clk 00:00:14]} {[%emt 00:00:01]} Qa7+
{[%clk 00:00:19]} {[%emt 00:00:03]} 56. Nb6 {[%clk 00:00:16]} {[%emt 00:00:04]}
Qf7 {[%clk 00:00:06]} {[%emt 00:00:18]} 57. Qe5 {[%clk 00:00:14]} {[%emt
00:00:06]} e3 {[%clk 00:00:09]} {[%emt 00:00:03]} 58. Qe7 {[%clk 00:00:14]}
{[%emt 00:00:05]} Kg7 {[%clk 00:00:10]} {[%emt 00:00:03]} 59. Qxe3 {[%clk
00:00:15]} {[%emt 00:00:04]} Bb7 {[%clk 00:00:12]} {[%emt 00:00:03]} 60. Qe7
{[%clk 00:00:15]} {[%emt 00:00:05]} Qxe7 {[%clk 00:00:12]} {[%emt 00:00:05]} 61.
dxe7 {[%clk 00:00:20]} Kf7 {[%clk 00:00:15]} 62. Kd6 {[%clk 00:00:24]} 1-0